bitfinex-derivatives/quotes_BTCF0:USTF0_20250121
["timestamp","ask_amount","ask_price","bid_price","bid_amount"]
[1737472996094,0.61708646,103530.0,103510.0,0.048352]
[1737472996407,0.25643194,103530.0,103510.0,0.04849748]
[1737472996603,0.61723194,103530.0,103510.0,0.04849748]
[1737472996804,0.61723194,103530.0,103510.0,0.00014548]
[1737472997305,0.61723194,103530.0,103510.0,0.04849848]
[1737472997696,0.40915,103520.0,103510.0,0.00014548]
[1737472998099,0.70915,103520.0,103490.0,1.5]
[1737472998313,0.3608,103500.0,103480.0,0.28339707]
[1737472998606,0.409165,103490.0,103470.0,0.33494119]
[1737472998909,0.20794046,103490.0,103470.0,1.83494119]
[1737472999098,0.704661,103500.0,103480.0,0.048369]
[1737472999297,0.56874046,103510.0,103480.0,0.048365]
[1737472999600,0.36094548,103510.0,103500.0,0.048358]
[1737472999906,0.00014548,103510.0,103490.0,0.048361]
[1737473000109,0.00014548,103510.0,103490.0,0.09686648]
[1737473000309,0.20808594,103510.0,103490.0,0.04850548]
[1737473000494,0.20808594,103510.0,103500.0,0.048359]
[1737473000698,0.00014548,103510.0,103500.0,0.048359]
[1737473001100,0.00014548,103510.0,103500.0,1.548359]
[1737473001309,0.00014548,103510.0,103500.0,1.49998907]
[1737473001498,0.00014548,103510.0,103500.0,1.54834807]
[1737473001499,0.20808594,103510.0,103500.0,1.54834807]
[1737473001698,0.61724094,103510.0,103490.0,0.64330748]
[1737473001909,0.56888594,103510.0,103490.0,0.64330648]
[1737473002109,0.56888594,103510.0,103490.0,2.14330648]
[1737473002512,0.56888594,103510.0,103490.0,2.19166748]
[1737473002710,0.56888594,103510.0,103490.0,2.14330648]
[1737473003211,0.3608,103500.0,103490.0,1.50014548]
[1737473003711,0.3608,103500.0,103490.0,0.00014548]
[1737473003909,0.409159,103500.0,103490.0,0.00014548]
[1737473004107,0.04837,103480.0,103460.0,0.29285003]
[1737473004310,0.61711046,103480.0,103450.0,2.193479]
[1737473004610,0.61711046,103480.0,103460.0,0.048377]
[1737473005114,0.61711046,103480.0,103450.0,2.12647699]
[1737473005414,0.56888594,103480.0,103470.0,0.048373]
[1737473005711,0.13487303,103480.0,103470.0,0.048373]
[1737473005905,0.49567303,103480.0,103460.0,0.00014548]
[1737473006112,0.49567303,103480.0,103460.0,0.04852048]
[1737473006323,0.00014548,103480.0,103470.0,0.048373]
[1737473006503,0.00214548,103480.0,103470.0,0.048373]
[1737473006699,0.49767303,103480.0,103470.0,0.048373]
[1737473007108,0.00214548,103480.0,103470.0,0.048373]
[1737473007308,0.00214548,103480.0,103470.0,3.07e-06]
[1737473007515,0.00214548,103480.0,103470.0,0.04837607]
[1737473009609,0.00214548,103480.0,103470.0,1.54837607]
[1737473010011,0.31713996,103480.0,103470.0,1.54837607]
[1737473010614,0.31713996,103480.0,103470.0,1.548373]
[1737473011011,0.31713996,103480.0,103470.0,1.909173]
[1737473011212,0.00116,103510.0,103500.0,0.048359]
[1737473011421,0.3608,103520.0,103500.0,0.048359]
[1737473011616,0.3608,103520.0,103510.0,0.048355]
[1737473011908,0.49552755,103520.0,103510.0,0.048355]
[1737473012116,0.003,103530.0,103520.0,0.04835]
[1737473012411,0.13772755,103530.0,103520.0,0.04835]
[1737473013117,0.35893278,103530.0,103520.0,0.04835]
[1737473013414,0.71973278,103530.0,103510.0,1.86092555]
[1737473013714,0.36990517,103530.0,103520.0,0.04835]
[1737473014610,0.73070517,103530.0,103510.0,1.50012555]
[1737473014813,0.13472755,103520.0,103510.0,1.54847755]
[1737473015017,0.73070517,103530.0,103510.0,1.54847755]
[1737473015207,0.73070517,103530.0,103520.0,0.04835]
[1737473015406,0.59597762,103530.0,103520.0,0.04835]
[1737473015708,0.23517762,103530.0,103520.0,0.04835]
[1737473015907,0.14669994,103530.0,103520.0,0.04835]
[1737473016513,0.14669994,103530.0,103510.0,1.86090562]
[1737473016714,0.14669994,103530.0,103520.0,0.04835]
[1737473017109,0.003,103530.0,103520.0,0.84147755]
[1737473017416,0.20141397,103540.0,103530.0,0.048345]
[1737473018109,0.20141397,103540.0,103530.0,1.548345]
[1737473018511,0.69694152,103540.0,103530.0,1.548345]
[1737473018712,0.49567303,103540.0,103530.0,1.548345]
[1737473018912,0.49567303,103540.0,103520.0,0.345948]
[1737473018913,0.54401503,103540.0,103520.0,0.345948]
[1737473019108,0.49552755,103530.0,103520.0,0.345948]
[1737473019304,0.49552755,103530.0,103510.0,0.40925862]
[1737473019505,0.13472755,103530.0,103510.0,8.569e-05]
[1737473019709,0.49552755,103520.0,103510.0,8.569e-05]
[1737473019915,0.13472755,103520.0,103510.0,0.40924069]
[1737473020113,0.13472755,103530.0,103520.0,0.048348]
[1737473020411,0.13472755,103530.0,103510.0,0.40923869]
[1737473020613,0.13472755,103520.0,103510.0,0.40923869]
[1737473020811,0.13472755,103520.0,103510.0,8.569e-05]
[1737473021113,0.49567303,103540.0,103530.0,0.048345]
[1737473021617,0.54401403,103540.0,103520.0,0.409148]
[1737473021916,0.13472755,103530.0,103520.0,0.40915]
[1737473022112,0.49567303,103540.0,103520.0,0.04835]
[1737473022311,0.13487303,103540.0,103520.0,0.096696]
[1737473022515,0.13487303,103540.0,103520.0,0.04832107]
[1737473022818,0.13487303,103540.0,103530.0,0.048345]
[1737473024814,0.00014548,103540.0,103530.0,0.048345]
[1737473025214,0.00014548,103540.0,103530.0,0.345245]
[1737473025420,0.00014548,103540.0,103530.0,0.706045]
[1737473025622,0.00014548,103540.0,103530.0,0.65767507]
[1737473026020,0.00014548,103540.0,103530.0,0.70602007]
[1737473027822,0.13487303,103540.0,103530.0,0.34522007]
[1737473028724,0.00014548,103540.0,103530.0,0.29685014]
[1737473028917,0.00014548,103540.0,103530.0,0.65765014]
[1737473029119,0.00014548,103540.0,103530.0,0.93955014]
[1737473029315,0.00014548,103540.0,103530.0,2.43955014]
[1737473031123,0.78627372,103560.0,103530.0,2.43955014]
[1737473031316,0.00038046,119660.0,103560.0,0.048331]
[1737473031317,0.3116863,103590.0,103560.0,0.048331]
[1737473031624,0.13472755,103570.0,103540.0,0.409138]
[1737473031811,0.13472755,103570.0,103560.0,0.048331]
[1737473032211,0.49552755,103580.0,103550.0,0.409136]
[1737473032424,0.49567303,103580.0,103570.0,0.048327]
[1737473033122,0.54399603,103580.0,103550.0,1.50014548]
[1737473033318,0.13472755,103560.0,103550.0,0.04848048]
[1737473034127,0.49552755,103570.0,103560.0,0.048331]
[1737473034714,0.49552755,103570.0,103550.0,0.30570655]
[1737473035020,0.49552755,103570.0,103550.0,1.85404255]
[1737473035021,0.13472755,103560.0,103550.0,1.85404255]
[1737473035220,0.13487303,103580.0,103570.0,0.048327]
[1737473035514,0.49567303,103580.0,103570.0,0.048327]
[1737473036118,0.54399603,103580.0,103560.0,0.04833]
[1737473036322,0.6302551,103570.0,103550.0,0.00010655]
[1737473036521,0.048341,103540.0,103510.0,0.04835]
[1737473036732,0.13472755,103520.0,103510.0,0.409155]
[1737473037328,0.49552755,103550.0,103540.0,0.048341]
[1737473037716,0.49552755,103550.0,103530.0,0.00014548]
[1737473037917,0.54386855,103540.0,103530.0,0.00014548]
[1737473039127,0.49552755,103540.0,103530.0,0.00014548]
[1737473040328,0.49552755,103540.0,103520.0,0.048349]
[1737473040630,0.49552755,103530.0,103520.0,0.048349]
[1737473040831,0.49552755,103540.0,103510.0,1.93897954]
[1737473041032,0.49552755,103540.0,103530.0,0.04800282]
[1737473041831,0.49552755,103540.0,103530.0,0.33580282]
[1737473042023,0.54386955,103540.0,103520.0,0.04849348]
[1737473042227,0.49552755,103530.0,103520.0,0.04849348]
[1737473042724,0.49552755,103530.0,103520.0,0.00014548]
[1737473042932,0.78052755,103530.0,103520.0,0.00014548]
[1737473043124,0.41972755,103530.0,103520.0,0.04849548]
[1737473043520,0.13472755,103530.0,103520.0,0.04849548]
[1737473043721,0.00940274,103550.0,103540.0,0.048341]
[1737473044334,0.37020274,103550.0,103540.0,1.548341]
[1737473044532,0.55326629,103550.0,103540.0,1.5]
[1737473044737,0.55326629,103550.0,103520.0,0.04846255]
[1737473045036,0.49552755,103540.0,103520.0,0.04846255]
[1737473045537,0.49552755,103540.0,103520.0,0.09680955]
[1737473045926,0.66630274,103550.0,103520.0,1.54846255]
[1737473046127,0.00940274,103550.0,103540.0,0.048341]
[1737473046738,0.00940274,103550.0,103540.0,0.346641]
[1737473046923,0.00940274,103550.0,103540.0,0.29827107]
[1737473047128,0.55326629,103550.0,103530.0,0.048343]
[1737473047440,0.00940274,103550.0,103540.0,0.048341]
[1737473048338,0.00014548,103550.0,103540.0,0.048341]
[1737473048535,0.6569,103580.0,103560.0,0.048328]
[1737473049128,0.3608,103580.0,103550.0,0.54386355]
[1737473049342,0.37009765,103580.0,103570.0,0.048327]
[1737473049838,0.37009765,103580.0,103560.0,0.00010255]
[1737473050028,0.37009765,103580.0,103570.0,0.048327]
[1737473050231,0.00929765,103580.0,103570.0,0.048327]
[1737473050433,0.84319203,103590.0,103570.0,0.048327]
[1737473050630,0.3608,103580.0,103570.0,0.048327]
[1737473050938,0.49552755,103580.0,103560.0,0.04843155]
[1737473051338,0.3608,103570.0,103560.0,0.04843155]
[1737473052338,0.49552755,103580.0,103560.0,0.04843155]
[1737473052639,0.3608,103580.0,103560.0,0.04843155]
[1737473052944,0.3608,103570.0,103550.0,2.33676355]
[1737473053240,0.3608,103570.0,103560.0,0.048328]
[1737473054141,0.49552755,103570.0,103550.0,0.34137948]
[1737473054330,0.49552755,103560.0,103550.0,0.00014548]
[1737473054638,0.79622755,103560.0,103550.0,0.00014548]
[1737473054835,0.79622755,103560.0,103550.0,0.04848148]
[1737473055144,0.6615,103560.0,103550.0,0.04848148]
[1737473055639,0.3007,103560.0,103550.0,0.04848148]
[1737473055836,0.36094548,103570.0,103560.0,0.048331]
[1737473056334,0.36094548,103570.0,103560.0,0.18305855]
[1737473056335,0.00014548,103570.0,103560.0,0.18305855]
[1737473056530,0.00014548,103570.0,103560.0,0.54385855]
[1737473056726,0.00014548,103570.0,103560.0,0.048331]
[1737473058447,0.00014548,103570.0,103560.0,2.04385855]
[1737473058738,0.3608,103580.0,103570.0,0.048323]
[1737473058926,0.3608,103580.0,103560.0,1.49995307]
[1737473059132,0.49552755,103580.0,103570.0,0.048325]
[1737473059543,0.80855172,103590.0,103570.0,0.048325]
[1737473059937,0.8570152,103590.0,103570.0,0.048325]
[1737473060137,0.8086972,103590.0,103580.0,0.048322]
[1737473060338,0.8086972,103590.0,103570.0,0.048325]
[1737473060541,0.49552755,103580.0,103570.0,0.04847048]
[1737473060955,0.3608,103580.0,103570.0,0.04847048]
[1737473061152,0.54384955,103580.0,103570.0,0.00014548]
[1737473062133,0.048337,103550.0,103530.0,1.8388638]
[1737473062341,0.13472755,103550.0,103530.0,0.3388638]
[1737473062647,0.49552755,103550.0,103530.0,0.3388638]
[1737473062841,0.80412755,103550.0,103530.0,1.7905188]
[1737473063043,0.6694,103550.0,103540.0,0.048341]
[1737473063349,0.00014548,103550.0,103540.0,0.048341]
[1737473063547,0.00014548,103550.0,103540.0,0.54386855]
[1737473063747,0.00014548,103550.0,103540.0,0.83556855]
[1737473064051,0.3091,103570.0,103560.0,0.048331]
[1737473064239,0.81695172,103590.0,103570.0,0.048323]
[1737473064439,0.68222417,103590.0,103570.0,0.048323]
[1737473064636,0.81695172,103590.0,103570.0,0.048323]
[1737473065050,0.3608,103580.0,103570.0,0.00014548]
[1737473065249,0.3608,103580.0,103570.0,0.04847048]
[1737473066046,0.68236965,103590.0,103580.0,0.048322]
[1737473066448,0.8170972,103590.0,103570.0,0.04847048]
[1737473066641,0.13472755,103580.0,103570.0,0.04847048]
[1737473066845,0.8170972,103590.0,103570.0,0.04847048]
[1737473067255,0.37326965,103590.0,103580.0,0.048322]
[1737473067849,0.5079972,103590.0,103580.0,0.048322]
[1737473068664,0.37326965,103590.0,103580.0,0.048322]
[1737473068855,0.01246965,103590.0,103580.0,0.048322]
[1737473069053,0.00314548,103590.0,103580.0,0.048322]
[1737473069357,0.36394548,103590.0,103580.0,0.048322]
[1737473070161,0.36394548,103590.0,103570.0,0.3088]
[1737473070459,0.49867303,103590.0,103570.0,0.048323]
[1737473070859,0.36394548,103590.0,103570.0,0.048323]
[1737473071265,0.49867303,103590.0,103570.0,0.048325]
[1737473071450,0.3608,103580.0,103570.0,0.04847048]
[1737473071756,0.048328,103570.0,103540.0,0.048338]
[1737473071958,0.3608,103550.0,103540.0,0.048338]
[1737473072358,0.49552755,103550.0,103540.0,0.048338]
[1737473072563,0.3608,103550.0,103540.0,0.048338]
[1737473072765,0.49552755,103560.0,103540.0,0.048338]
[1737473072964,0.00014548,103560.0,103550.0,0.048335]
[1737473074052,0.00014548,103560.0,103550.0,0.18306255]
[1737473074253,0.3608,103580.0,103550.0,0.78699262]
[1737473074460,0.3608,103580.0,103570.0,0.048327]
[1737473074663,1.09622755,103590.0,103580.0,0.048322]
[1737473074664,0.60186,103590.0,103580.0,0.048322]
[1737473074861,0.6007,103590.0,103580.0,0.048322]
[1737473075164,0.6007,103590.0,103560.0,0.88370854]
[1737473075363,0.0124021,103590.0,103580.0,0.048322]
[1737473075753,0.14712965,103590.0,103580.0,0.048322]
[1737473076467,0.50792965,103590.0,103580.0,0.048322]
[1737473077349,0.50792965,103590.0,103570.0,9.755e-05]
[1737473077549,0.50792965,103590.0,103570.0,0.04842255]
[1737473077750,0.13472755,103580.0,103570.0,0.04842255]
[1737473077956,0.44062755,103580.0,103570.0,0.04842255]
[1737473078168,0.80142755,103580.0,103570.0,0.04842255]
[1737473079157,0.80142755,103580.0,103570.0,9.755e-05]
[1737473079463,0.9721,103580.0,103570.0,0.04842455]
[1737473079863,0.6113,103580.0,103570.0,0.04842455]
[1737473080060,1.10682755,103580.0,103570.0,0.04842455]
[1737473080265,1.10682755,103580.0,103570.0,5.462e-05]
[1737473080458,1.10682755,103580.0,103570.0,0.048327]
[1737473082765,0.9721,103580.0,103570.0,0.048327]
[1737473083158,0.9721,103580.0,103560.0,0.04844383]
[1737473083159,1.10682755,103580.0,103560.0,0.04844383]
[1737473083363,0.49552755,103570.0,103550.0,1.548335]
[1737473083561,0.49552755,103560.0,103540.0,0.04834]
[1737473083758,0.3608,103560.0,103550.0,0.048336]
[1737473085968,0.49552755,103560.0,103550.0,0.048336]
[1737473086363,0.49552755,103560.0,103540.0,1.79696607]
[1737473086771,0.49552755,103560.0,103550.0,0.048336]
[1737473087063,0.3608,103560.0,103550.0,0.048336]
[1737473088263,0.49552755,103560.0,103540.0,1.84530407]
[1737473088463,0.49552755,103550.0,103540.0,1.49996607]
[1737473088666,1.08532755,103550.0,103530.0,0.0497628]
[1737473088868,0.49552755,103540.0,103530.0,0.0497628]
[1737473089065,0.49552755,103540.0,103530.0,0.0014188]
[1737473089066,0.54386855,103540.0,103530.0,0.0014188]
[1737473089362,0.54386855,103540.0,103510.0,0.47134722]
[1737473089569,0.49552755,103540.0,103520.0,0.048349]
[1737473089871,0.95194549,103550.0,103530.0,0.048345]
[1737473090053,0.95074548,103550.0,103530.0,0.096687]
[1737473090261,0.95074548,103550.0,103540.0,0.048341]
[1737473090462,1.08547303,103550.0,103530.0,0.048345]
[1737473090759,0.49552755,103540.0,103520.0,0.096695]
[1737473091184,0.49552755,103540.0,103520.0,0.048347]
[1737473091369,0.13472755,103530.0,103520.0,0.048347]
[1737473091565,0.36094548,103550.0,103530.0,0.048343]
[1737473091766,0.3071,103540.0,103530.0,0.048343]
[1737473092263,0.44182755,103540.0,103530.0,0.048343]
[1737473092470,0.3071,103540.0,103520.0,0.04832307]
[1737473092669,0.80262755,103540.0,103510.0,0.346651]
[1737473092871,0.49552755,103530.0,103520.0,0.048348]
[1737473093370,0.49552755,103530.0,103510.0,0.346652]
[1737473093771,0.49552755,103520.0,103500.0,1.548878]
[1737473093971,0.49552755,103520.0,103500.0,1.548358]
[1737473093972,0.49552755,103510.0,103500.0,1.548358]
[1737473094162,0.78472755,103510.0,103490.0,0.00144927]
[1737473094365,0.49552755,103500.0,103480.0,0.56311674]
[1737473094673,0.54389155,103490.0,103480.0,0.23424874]
[1737473094857,0.048369,103480.0,103460.0,0.34437205]
[1737473095169,0.85632755,103470.0,103460.0,0.34437205]
[1737473095565,0.18324203,103480.0,103460.0,0.34438012]
[1737473095566,0.00014548,103480.0,103460.0,0.34438012]
[1737473095768,0.00014548,103480.0,103470.0,0.409173]
[1737473095966,0.3088,103510.0,103500.0,0.048359]
[1737473096174,0.01149221,103510.0,103500.0,0.048359]
[1737473096362,0.49552755,103520.0,103500.0,0.048359]
[1737473096363,0.49552755,103520.0,103500.0,0.409159]
[1737473096563,0.49552755,103520.0,103510.0,0.048355]
[1737473096862,0.3608,103520.0,103510.0,0.048355]
[1737473097269,0.00014548,103530.0,103510.0,0.54388255]
[1737473097576,0.49852755,103560.0,103530.0,0.048342]
[1737473097772,0.13472755,103540.0,103530.0,0.048342]
[1737473097967,0.13472755,103540.0,103520.0,0.048349]
[1737473098168,0.49552755,103530.0,103490.0,0.3608]
[1737473098373,0.13472755,103510.0,103500.0,0.048358]
[1737473098570,0.13472755,103510.0,103490.0,0.36078807]
[1737473098763,0.78012755,103520.0,103500.0,0.00014548]
[1737473098764,0.36094548,103520.0,103500.0,0.00014548]
[1737473098959,0.36094548,103520.0,103500.0,0.04850448]
[1737473099164,0.3608,103510.0,103500.0,0.04850448]
[1737473099868,0.49567303,103520.0,103500.0,0.04850448]
[1737473099869,0.77777303,103520.0,103500.0,0.04850448]
[1737473100173,0.2014543,103520.0,103510.0,0.39115499]
[1737473100379,0.2014543,103520.0,103510.0,0.52588254]
[1737473100768,0.23006723,103530.0,103520.0,0.04835]
[1737473101076,0.25882563,103540.0,103530.0,0.048345]
[1737473101274,2.2e-07,103540.0,103530.0,0.55596352]
[1737473101477,2.2e-07,103540.0,103530.0,0.84006303]
[1737473101680,2.2e-07,103540.0,103530.0,0.7916931]
[1737473101871,2.2e-07,103540.0,103530.0,0.8400381]
[1737473102067,2.2e-07,103540.0,103530.0,0.69322007]
[1737473102264,2.2e-07,103540.0,103530.0,0.40912007]
[1737473103278,0.13487303,103550.0,103540.0,0.048341]
[1737473103580,0.00014548,103550.0,103540.0,0.409141]
[1737473104583,0.00014548,103550.0,103540.0,0.36077107]
[1737473104880,0.00014548,103550.0,103540.0,0.40911207]
[1737473105067,0.00014548,103550.0,103540.0,0.048341]
[1737473105271,0.13587303,103550.0,103530.0,0.40911807]
[1737473105483,0.57014548,103550.0,103530.0,0.45746007]
[1737473105685,0.28374548,103550.0,103540.0,0.409141]
[1737473107291,0.00114548,103550.0,103540.0,0.54386855]
[1737473107580,0.00114548,103550.0,103540.0,0.36077107]
[1737473107786,0.00114548,103550.0,103540.0,0.54383962]
[1737473108184,0.00114548,103550.0,103540.0,0.40911207]
[1737473109288,0.00114548,103550.0,103540.0,0.54383962]
[1737473109788,0.00114548,103550.0,103540.0,0.40911207]
[1737473110083,0.00114548,103550.0,103540.0,0.54383962]
[1737473110281,0.00114548,103550.0,103540.0,0.85093962]
[1737473110282,0.00014548,103550.0,103540.0,0.85093962]
[1737473110479,0.00014548,103550.0,103540.0,0.85193962]
[1737473110781,4.8e-07,103550.0,103540.0,1.10356969]
[1737473110991,4.8e-07,103550.0,103540.0,1.11481678]
[1737473111177,4.8e-07,103550.0,103540.0,2.31481678]
[1737473111377,4.8e-07,103550.0,103540.0,2.61481678]
[1737473111578,4.8e-07,103550.0,103540.0,2.31481678]
[1737473111783,4.8e-07,103550.0,103540.0,0.81481678]
[1737473112387,4.8e-07,103550.0,103540.0,2.31481678]
[1737473112992,4.8e-07,103550.0,103540.0,0.68008923]
[1737473113284,4.8e-07,103550.0,103540.0,0.81481678]
[1737473113491,4.8e-07,103550.0,103540.0,0.37298923]
[1737473113696,4.8e-07,103550.0,103540.0,0.3246193]
[1737473113880,4.8e-07,103550.0,103540.0,0.3236193]
[1737473114085,0.00100048,103550.0,103540.0,0.45834685]
[1737473115781,0.00100048,103550.0,103540.0,0.75834685]
[1737473116091,0.003,103560.0,103550.0,0.048336]
[1737473116280,0.003,103560.0,103550.0,1.12616355]
[1737473116786,0.003,103560.0,103550.0,0.3608]
[1737473117092,0.003,103560.0,103550.0,0.409136]
[1737473117787,0.004,103560.0,103550.0,0.409136]
[1737473118388,0.18706055,103560.0,103540.0,0.31251469]
[1737473118694,0.048341,103540.0,103530.0,0.00056]
[1737473118991,0.18306855,103540.0,103520.0,0.409146]
[1737473119190,0.13472755,103530.0,103520.0,0.409146]
[1737473119783,0.13472755,103530.0,103520.0,0.36077607]
[1737473120189,0.13472755,103530.0,103520.0,0.048349]
[1737473120489,0.42712755,103530.0,103510.0,0.06203956]
[1737473120692,0.2924,103530.0,103520.0,0.05235]
[1737473120892,0.2924,103530.0,103520.0,1.55235]
[1737473121107,0.00014548,103540.0,103530.0,0.048345]
[1737473121396,0.13487303,103540.0,103530.0,0.048345]
[1737473121695,0.00014548,103540.0,103530.0,0.048345]
[1737473121889,0.00014548,103540.0,103530.0,0.409145]
[1737473122601,0.00014548,103540.0,103530.0,0.54387255]
[1737473122796,0.00014548,103540.0,103530.0,0.49550262]
[1737473122990,0.00014548,103540.0,103530.0,0.40912007]
[1737473124393,0.00014548,103540.0,103530.0,0.54484762]
[1737473124598,4.8e-07,103540.0,103530.0,0.55693819]
[1737473125188,0.003,103560.0,103550.0,0.048336]
[1737473125385,0.003,103560.0,103550.0,0.90466355]
[1737473125589,0.00285452,103560.0,103550.0,0.90466355]
[1737473125791,0.00285452,103560.0,103550.0,0.85629362]
[1737473125993,0.00285452,103560.0,103550.0,0.91671771]
[1737473126494,0.00014548,103570.0,103560.0,0.048331]
[1737473126694,0.00014548,103570.0,103560.0,0.409131]
[1737473127193,0.00014548,103570.0,103560.0,0.048331]
[1737473127589,0.00114548,103570.0,103560.0,0.409131]
[1737473128992,0.00114548,103570.0,103560.0,0.36076107]
[1737473129192,0.00114548,103570.0,103560.0,0.048331]
[1737473129397,0.00114548,103570.0,103560.0,0.409131]
[1737473130195,0.00114548,103570.0,103560.0,0.048331]
[1737473131103,0.00114548,103570.0,103550.0,1.92083709]
[1737473131104,0.42497303,103570.0,103550.0,0.40924655]
[1737473131306,0.2893,103560.0,103550.0,0.40924655]
[1737473131500,0.29024548,103570.0,103560.0,0.048331]
[1737473131802,0.29024548,103570.0,103560.0,0.409131]
[1737473132106,0.00114548,103570.0,103560.0,0.36076107]
[1737473132410,0.00114548,103570.0,103560.0,0.40909207]
[1737473133403,0.00014548,103570.0,103560.0,0.40909207]
[1737473133607,0.00114548,103570.0,103560.0,0.40909207]
[1737473133797,0.13587303,103570.0,103560.0,0.40909207]
[1737473134102,0.00114548,103570.0,103560.0,0.40909207]
[1737473135000,0.00114548,103570.0,103560.0,0.36072214]
[1737473136793,0.45158195,103570.0,103550.0,0.04847848]
[1737473136996,0.08963647,103560.0,103550.0,0.00014548]
[1737473137499,0.08963647,103560.0,103550.0,0.36094548]
[1737473137500,0.39883647,103560.0,103550.0,0.36094548]
[1737473137699,0.44372583,103560.0,103550.0,0.36094548]
[1737473138098,1.14315383,103560.0,103540.0,1.50052]
[1737473138300,0.5995,103560.0,103550.0,0.048332]
[1737473139097,0.73502583,103560.0,103540.0,1.909135]
[1737473139394,0.73502583,103560.0,103540.0,1.86094548]
[1737473139601,0.73502583,103560.0,103550.0,0.048336]
[1737473140307,1.57868466,103560.0,103540.0,0.00014548]
[1737473140603,0.048339,103540.0,103520.0,0.048348]
[1737473140802,0.80382583,103530.0,103510.0,1.92269308]
[1737473141106,0.80382583,103530.0,103510.0,0.37432315]
[1737473141297,0.44302583,103530.0,103510.0,0.37432315]
[1737473141609,0.80397131,103530.0,103520.0,0.002]
[1737473141998,0.66944548,103530.0,103520.0,0.050349]
[1737473142199,0.80397131,103530.0,103520.0,0.050349]
[1737473142496,0.30864548,103530.0,103520.0,0.411149]
[1737473142699,0.00014548,103530.0,103520.0,0.050349]
[1737473143204,0.00014548,103530.0,103520.0,0.054349]
[1737473143503,0.00014548,103530.0,103520.0,0.54967483]
[1737473143711,0.00014548,103530.0,103520.0,0.54767483]
[1737473144093,0.00014548,103530.0,103520.0,0.4993049]
[1737473144299,0.00014548,103530.0,103520.0,0.7870049]
[1737473144601,0.00014548,103530.0,103520.0,0.8373539]
[1737473145002,0.00014548,103530.0,103520.0,0.05432807]
[1737473145205,0.00014548,103530.0,103520.0,0.41512807]
[1737473146007,0.00014548,103530.0,103520.0,0.05432807]
[1737473146213,0.49547131,103530.0,103520.0,0.05432807]
[1737473146404,0.36094548,103530.0,103520.0,0.05432807]
[1737473146715,0.54381531,103530.0,103520.0,0.00597907]
[1737473147007,0.13467131,103530.0,103520.0,0.05432807]
[1737473147198,0.13467131,103530.0,103510.0,0.00014548]
[1737473147395,0.00014548,103530.0,103520.0,0.048349]
[1737473147608,0.36094548,103530.0,103520.0,0.048349]
[1737473147903,0.00014548,103530.0,103520.0,0.048349]
[1737473148213,0.36094548,103530.0,103520.0,0.048349]
[1737473148606,0.36094548,103530.0,103510.0,0.36294548]
[1737473148607,0.36094548,103530.0,103510.0,0.00214548]
[1737473148809,0.49547131,103530.0,103510.0,0.05049748]
[1737473149001,0.49547131,103530.0,103510.0,0.05449748]
[1737473149202,0.3608,103520.0,103510.0,0.05449748]
[1737473149399,0.49547131,103530.0,103510.0,0.05449748]
[1737473149605,0.00014548,103530.0,103520.0,0.052349]
[1737473149912,0.54364883,103580.0,103520.0,0.68320066]
[1737473150100,1.08902583,103580.0,103560.0,0.04828607]
[1737473150298,1.08902583,103580.0,103560.0,1.54828607]
[1737473150496,1.10009239,103580.0,103560.0,1.54828607]
[1737473150805,0.49532583,103570.0,103560.0,0.04828607]
[1737473151007,0.49532583,103570.0,103560.0,0.04843155]
[1737473151217,0.49532583,103570.0,103560.0,0.00014548]
[1737473151713,1.10247788,103580.0,103560.0,0.04847648]
[1737473151910,1.10123787,103580.0,103560.0,0.04847648]
[1737473152214,1.10123787,103580.0,103570.0,0.048326]
[1737473152510,1.10123787,103580.0,103560.0,0.00014548]
[1737473152711,0.3608,103570.0,103560.0,0.04847248]
[1737473152908,0.37417204,103580.0,103560.0,0.00014548]
[1737473153116,0.00014548,103580.0,103570.0,0.54365183]
[1737473153413,0.00114548,103580.0,103570.0,0.40908207]
[1737473154012,0.00214548,103580.0,103570.0,0.40908207]
[1737473154914,0.00214548,103580.0,103570.0,0.5436079]
[1737473155114,0.00214548,103580.0,103570.0,0.40908207]
[1737473156219,0.00214548,103580.0,103570.0,0.36071214]
[1737473156422,0.00214548,103580.0,103570.0,0.37194675]
[1737473156613,0.00214548,103580.0,103570.0,0.50647258]
[1737473156916,0.00214548,103580.0,103570.0,0.37194675]
[1737473157318,0.00214548,103580.0,103570.0,1.87194675]
[1737473157520,0.00214548,103580.0,103570.0,0.37194675]
[1737473157720,0.00214548,103580.0,103570.0,0.36071214]
[1737473158106,0.00214548,103580.0,103570.0,0.048326]
[1737473158510,0.49747131,103580.0,103560.0,0.04847548]
[1737473158729,0.70967131,103580.0,103560.0,0.04847548]
[1737473159115,1.07047131,103580.0,103560.0,0.04847548]
[1737473159315,1.07047131,103580.0,103560.0,0.3608]
[1737473159512,1.06847131,103580.0,103560.0,0.3608]
[1737473159717,0.71067131,103580.0,103570.0,0.048326]
[1737473160220,0.71067131,103580.0,103560.0,0.34212499]
[1737473160408,0.00314548,103580.0,103570.0,0.048322]
[1737473160609,0.00314548,103580.0,103570.0,0.409122]
[1737473160814,0.13767131,103580.0,103570.0,0.409122]
[1737473161210,0.00114548,103580.0,103570.0,0.409122]
[1737473161418,0.13767131,103580.0,103570.0,0.3608]
[1737473161608,0.13767131,103580.0,103570.0,0.409123]
[1737473161609,0.00314548,103580.0,103570.0,0.409123]
[1737473162222,0.13767131,103580.0,103570.0,0.409123]
[1737473162417,0.14899601,103580.0,103570.0,0.36075307]
[1737473163029,0.55811501,103580.0,103560.0,0.04847148]
[1737473163211,0.55811501,103580.0,103560.0,0.00014548]
[1737473163212,0.54364883,103570.0,103560.0,0.00014548]
[1737473163411,0.69122583,103570.0,103540.0,0.41058364]
[1737473163620,0.13452583,103550.0,103540.0,0.41058364]
[1737473163919,0.13452583,103550.0,103540.0,0.3608]
[1737473164119,0.49532583,103550.0,103530.0,0.409139]
[1737473164322,0.87472583,103550.0,103530.0,0.409139]
[1737473164510,0.13452583,103540.0,103530.0,0.409139]
[1737473164709,0.33042583,103540.0,103530.0,0.40928448]
[1737473164917,0.33042583,103540.0,103530.0,0.00014548]
[1737473165423,0.69122583,103540.0,103520.0,0.048344]
[1737473165612,0.69122583,103540.0,103520.0,0.409144]
[1737473165815,0.73956283,103540.0,103520.0,0.409144]
[1737473166213,0.78790283,103540.0,103520.0,0.3608]
[1737473166410,0.73956283,103540.0,103520.0,0.048346]
[1737473166916,0.69122583,103540.0,103520.0,0.048346]
[1737473167315,0.69122583,103540.0,103520.0,0.409146]
[1737473167517,0.1959,103540.0,103530.0,0.048341]
[1737473167710,0.1959,103540.0,103530.0,0.409141]
[1737473167711,0.1969,103540.0,103530.0,0.409141]
[1737473167917,0.1989,103540.0,103530.0,0.409141]
[1737473168122,0.003,103540.0,103530.0,0.54366683]